[Event "Late-Titled-Tuesday-Blitz-April-02-2024"]
[Site "Chess.com"]
[Date "2024.04.02"]
[Round "11"]
[White "Aygehovit1992"]
[Black "Jospem"]
[Result "0-1"]
[WhiteElo "2860"]
[BlackElo "3032"]
[TimeControl "180+1"]
[EndTime "16:01:43 PDT"]
[Termination "Jospem won by resignation"]

1. e4 {[%clk 0:03:00.9]} 1... c5 {[%clk 0:02:58.6]} 2. Nf3 {[%clk 0:03:01.1]}
2... d6 {[%clk 0:02:59.2]} 3. Bb5+ {[%clk 0:03:01]} 3... Nd7 {[%clk 0:02:59.2]}
4. O-O {[%clk 0:03:00.1]} 4... a6 {[%clk 0:02:59.7]} 5. Bxd7+ {[%clk 0:03:00.4]}
5... Bxd7 {[%clk 0:03:00.6]} 6. c3 {[%clk 0:03:01.1]} 6... Nf6 {[%clk
0:03:00.4]} 7. Re1 {[%clk 0:02:58.9]} 7... Bc6 {[%clk 0:03:00.9]} 8. d4 {[%clk
0:02:59.2]} 8... Bxe4 {[%clk 0:03:01.3]} 9. Bg5 {[%clk 0:02:59.3]} 9... Bc6
{[%clk 0:03:02.1]} 10. Bxf6 {[%clk 0:02:57.9]} 10... gxf6 {[%clk 0:03:03]} 11.
d5 {[%clk 0:02:58.4]} 11... Bd7 {[%clk 0:03:03.1]} 12. Nbd2 {[%clk 0:02:58.8]}
12... Qc7 {[%clk 0:03:01.8]} 13. b4 {[%clk 0:02:48.7]} 13... Rg8 {[%clk
0:02:53.5]} 14. Ne4 {[%clk 0:02:47.6]} 14... O-O-O {[%clk 0:02:50.5]} 15. bxc5
{[%clk 0:02:46]} 15... dxc5 {[%clk 0:02:51.4]} 16. c4 {[%clk 0:02:23.9]} 16...
Kb8 {[%clk 0:02:32]} 17. Rb1 {[%clk 0:02:23.2]} 17... f5 {[%clk 0:02:20.5]} 18.
d6 {[%clk 0:02:12.3]} 18... Qc8 {[%clk 0:02:04]} 19. dxe7 {[%clk 0:02:04.3]}
19... Bxe7 {[%clk 0:02:04.9]} 20. Nd6 {[%clk 0:02:01.1]} 20... Bxd6 {[%clk
0:01:58.5]} 21. Qxd6+ {[%clk 0:02:02]} 21... Ka8 {[%clk 0:01:59.1]} 22. Re7
{[%clk 0:01:27.7]} 22... Bc6 {[%clk 0:01:56.3]} 23. Qf4 {[%clk 0:01:27.1]} 23...
Rg4 {[%clk 0:01:54.3]} 24. Qe3 {[%clk 0:01:23.9]} 24... f4 {[%clk 0:01:54.1]}
25. Qe2 {[%clk 0:00:42.4]} 25... Rxg2+ {[%clk 0:01:53.1]} 26. Kxg2 {[%clk
0:00:41.1]} 26... Qg4+ {[%clk 0:01:52.9]} 27. Kf1 {[%clk 0:00:41.5]} 27... Bxf3
{[%clk 0:01:53.6]} 0-1

[Event "Late-Titled-Tuesday-Blitz-April-02-2024"]
[Site "Chess.com"]
[Date "2024.04.02"]
[Round "11"]
[White "Kavyev_Ruslan"]
[Black "Itay121"]
[Result "1-0"]
[WhiteElo "2428"]
[BlackElo "2546"]
[TimeControl "180+1"]
[EndTime "16:02:04 PDT"]
[Termination "Kavyev_Ruslan won by checkmate"]

1. d4 {[%clk 0:03:00.9]} 1... c5 {[%clk 0:02:56.3]} 2. Nf3 {[%clk 0:03:01.4]}
2... cxd4 {[%clk 0:02:56.4]} 3. Nxd4 {[%clk 0:03:01.4]} 3... d5 {[%clk
0:02:54.7]} 4. e3 {[%clk 0:02:48.9]} 4... Nf6 {[%clk 0:02:52.6]} 5. c4 {[%clk
0:02:48.6]} 5... e5 {[%clk 0:02:51.3]} 6. Nf3 {[%clk 0:02:48.6]} 6... e4 {[%clk
0:02:50.1]} 7. Nd4 {[%clk 0:02:48.6]} 7... Bb4+ {[%clk 0:02:46.8]} 8. Bd2 {[%clk
0:02:48.2]} 8... Be7 {[%clk 0:02:40]} 9. Nc3 {[%clk 0:02:47]} 9... Nc6 {[%clk
0:02:34.2]} 10. Nxc6 {[%clk 0:02:39]} 10... bxc6 {[%clk 0:02:35.1]} 11. cxd5
{[%clk 0:02:39.6]} 11... cxd5 {[%clk 0:02:33.7]} 12. Bb5+ {[%clk 0:02:39.3]}
12... Bd7 {[%clk 0:02:33.8]} 13. Qa4 {[%clk 0:02:36.9]} 13... Bxb5 {[%clk
0:02:30.3]} 14. Qxb5+ {[%clk 0:02:36.9]} 14... Qd7 {[%clk 0:02:30.7]} 15. Qxd7+
{[%clk 0:02:31.6]} 15... Kxd7 {[%clk 0:02:31.6]} 16. O-O-O {[%clk 0:02:17.8]}
16... Rhc8 {[%clk 0:02:27.4]} 17. Kb1 {[%clk 0:02:17.5]} 17... Rab8 {[%clk
0:02:23.7]} 18. Be1 {[%clk 0:02:08.8]} 18... Ke6 {[%clk 0:02:16.8]} 19. Ka1
{[%clk 0:02:02.7]} 19... Bd6 {[%clk 0:02:04.2]} 20. f3 {[%clk 0:02:02.1]} 20...
Be5 {[%clk 0:02:03]} 21. Bg3 {[%clk 0:01:47]} 21... Rb4 {[%clk 0:01:33.4]} 22.
Bxe5 {[%clk 0:01:39.8]} 22... Kxe5 {[%clk 0:01:34.3]} 23. Rd2 {[%clk 0:01:32.9]}
23... d4 {[%clk 0:01:18.4]} 24. exd4+ {[%clk 0:01:31.8]} 24... Rxd4 {[%clk
0:01:19.3]} 25. f4+ {[%clk 0:01:29.9]} 25... Kxf4 {[%clk 0:01:15.4]} 26. Rxd4
{[%clk 0:01:29.9]} 26... Ke3 {[%clk 0:01:13.2]} 27. Rhd1 {[%clk 0:01:22.1]}
27... Re8 {[%clk 0:01:08.1]} 28. a3 {[%clk 0:01:20.5]} 28... Ng4 {[%clk
0:01:04.5]} 29. Rd7 {[%clk 0:01:12.3]} 29... Ne5 {[%clk 0:00:58.7]} 30. Re1+
{[%clk 0:01:05.5]} 30... Kf2 {[%clk 0:00:56.4]} 31. Re2+ {[%clk 0:01:05.8]}
31... Kf1 {[%clk 0:00:55.7]} 32. Rd1# {[%clk 0:01:05]} 1-0

[Event "Late-Titled-Tuesday-Blitz-April-02-2024"]
[Site "Chess.com"]
[Date "2024.04.02"]
[Round "11"]
[White "Cuchulin"]
[Black "ChempionBg"]
[Result "1-0"]
[WhiteElo "2151"]
[BlackElo "2236"]
[TimeControl "180+1"]
[EndTime "16:02:11 PDT"]
[Termination "Cuchulin won on time"]

1. d4 {[%clk 0:03:00.9]} 1... Nf6 {[%clk 0:02:56.1]} 2. Bf4 {[%clk 0:03:01]}
2... d5 {[%clk 0:02:52.2]} 3. e3 {[%clk 0:03:00.8]} 3... c5 {[%clk 0:02:49.7]}
4. Nc3 {[%clk 0:03:00.8]} 4... Nc6 {[%clk 0:02:47.8]} 5. Nb5 {[%clk 0:02:59]}
5... e5 {[%clk 0:02:08.5]} 6. dxe5 {[%clk 0:02:59.9]} 6... Ne4 {[%clk
0:02:06.4]} 7. Qxd5 {[%clk 0:02:58.3]} 7... Bf5 {[%clk 0:01:26.8]} 8. Nd6+
{[%clk 0:02:53.2]} 8... Bxd6 {[%clk 0:01:18.7]} 9. exd6 {[%clk 0:02:53.1]} 9...
Qa5+ {[%clk 0:01:18.3]} 10. c3 {[%clk 0:02:51.9]} 10... Nxc3 {[%clk 0:01:14.1]}
11. Qxf5 {[%clk 0:02:24.4]} 11... Ne4+ {[%clk 0:00:14.5]} 12. Ke2 {[%clk
0:02:24.2]} 12... Qd2+ {[%clk 0:00:13.6]} 13. Kf3 {[%clk 0:02:24.1]} 13... Nxf2
{[%clk 0:00:09.9]} 14. d7+ {[%clk 0:01:59.8]} 14... Kf8 {[%clk 0:00:05.6]} 15.
Qxc5+ {[%clk 0:01:50.4]} 15... Kg8 {[%clk 0:00:04.3]} 16. Bc4 {[%clk 0:01:24.2]}
16... Nxh1 {[%clk 0:00:03.3]} 17. Ne2 {[%clk 0:01:24.3]} 1-0

[Event "Late-Titled-Tuesday-Blitz-April-02-2024"]
[Site "Chess.com"]
[Date "2024.04.02"]
[Round "11"]
[White "expii"]
[Black "Cluke86"]
[Result "0-1"]
[WhiteElo "2228"]
[BlackElo "2325"]
[TimeControl "180+1"]
[EndTime "16:02:13 PDT"]
[Termination "Cluke86 won by resignation"]

1. e4 {[%clk 0:02:57.6]} 1... d6 {[%clk 0:02:59.4]} 2. d4 {[%clk 0:02:56.6]}
2... Nf6 {[%clk 0:02:59.8]} 3. Nc3 {[%clk 0:02:55.5]} 3... e5 {[%clk 0:02:59.8]}
4. Nf3 {[%clk 0:02:54.1]} 4... Nbd7 {[%clk 0:02:59.1]} 5. dxe5 {[%clk
0:02:53.9]} 5... dxe5 {[%clk 0:02:58.9]} 6. Bc4 {[%clk 0:02:49.4]} 6... Be7
{[%clk 0:02:55.3]} 7. O-O {[%clk 0:02:44.4]} 7... c6 {[%clk 0:02:55.4]} 8. Bg5
{[%clk 0:02:35.5]} 8... h6 {[%clk 0:02:54.5]} 9. Bxf6 {[%clk 0:02:33.7]} 9...
Bxf6 {[%clk 0:02:54.6]} 10. Qd2 {[%clk 0:02:31.7]} 10... O-O {[%clk 0:02:51.1]}
11. Rad1 {[%clk 0:02:31.3]} 11... Qc7 {[%clk 0:02:48.9]} 12. Qe3 {[%clk
0:02:26.7]} 12... b5 {[%clk 0:02:42.1]} 13. Bb3 {[%clk 0:02:13.3]} 13... a5
{[%clk 0:02:40.2]} 14. a4 {[%clk 0:02:11.3]} 14... b4 {[%clk 0:02:39.4]} 15. Ne2
{[%clk 0:02:08.1]} 15... Ba6 {[%clk 0:02:38.1]} 16. Rfe1 {[%clk 0:02:01.3]}
16... Nb6 {[%clk 0:02:33.2]} 17. c3 {[%clk 0:01:52.3]} 17... Rad8 {[%clk
0:02:23.6]} 18. Ng3 {[%clk 0:01:47.4]} 18... c5 {[%clk 0:02:12.2]} 19. Nf5
{[%clk 0:01:41.8]} 19... Rxd1 {[%clk 0:02:00]} 20. Rxd1 {[%clk 0:01:38.1]} 20...
Rd8 {[%clk 0:02:00.4]} 21. Rxd8+ {[%clk 0:01:37]} 21... Bxd8 {[%clk 0:02:01.1]}
22. Nxh6+ {[%clk 0:01:33.3]} 22... gxh6 {[%clk 0:01:58.8]} 23. Qxh6 {[%clk
0:01:34.2]} 23... Bc4 {[%clk 0:01:50.8]} 24. Bc2 {[%clk 0:01:02.4]} 24... b3
{[%clk 0:01:42.4]} 25. Bd1 {[%clk 0:00:56.3]} 25... Qd7 {[%clk 0:01:37.1]} 26.
Nd2 {[%clk 0:00:55.9]} 26... Nxa4 {[%clk 0:01:27.7]} 27. h4 {[%clk 0:00:50.5]}
27... Qe6 {[%clk 0:01:22.1]} 28. Qh5 {[%clk 0:00:35.3]} 28... Nxb2 {[%clk
0:01:21]} 29. Bg4 {[%clk 0:00:34.5]} 29... Qg6 {[%clk 0:01:13.8]} 0-1

[Event "Late-Titled-Tuesday-Blitz-April-02-2024"]
[Site "Chess.com"]
[Date "2024.04.02"]
[Round "11"]
[White "smotherhubbard"]
[Black "SultaiC"]
[Result "0-1"]
[WhiteElo "2373"]
[BlackElo "2507"]
[TimeControl "180+1"]
[EndTime "16:02:24 PDT"]
[Termination "SultaiC won on time"]

1. d4 {[%clk 0:03:00.9]} 1... Nf6 {[%clk 0:02:59.6]} 2. c4 {[%clk 0:02:59.6]}
2... e6 {[%clk 0:03:00.5]} 3. Nf3 {[%clk 0:02:58.3]} 3... d5 {[%clk 0:03:01.4]}
4. g3 {[%clk 0:02:55.1]} 4... Bb4+ {[%clk 0:03:01.8]} 5. Bd2 {[%clk 0:02:54.4]}
5... Bxd2+ {[%clk 0:03:02.7]} 6. Nbxd2 {[%clk 0:02:50.8]} 6... O-O {[%clk
0:03:03.6]} 7. Bg2 {[%clk 0:02:50.7]} 7... c6 {[%clk 0:03:04.5]} 8. O-O {[%clk
0:02:50.9]} 8... Nbd7 {[%clk 0:03:05.4]} 9. Qc2 {[%clk 0:02:46.3]} 9... Re8
{[%clk 0:03:05.9]} 10. e4 {[%clk 0:02:46.3]} 10... Nxe4 {[%clk 0:03:06.6]} 11.
Nxe4 {[%clk 0:02:46.8]} 11... dxe4 {[%clk 0:03:07.5]} 12. Qxe4 {[%clk 0:02:47]}
12... Nf6 {[%clk 0:03:08.4]} 13. Qc2 {[%clk 0:02:44.8]} 13... Qc7 {[%clk
0:03:08.9]} 14. Ne5 {[%clk 0:02:36]} 14... Bd7 {[%clk 0:03:09.8]} 15. Rad1
{[%clk 0:02:30.1]} 15... Rad8 {[%clk 0:03:10.4]} 16. f4 {[%clk 0:02:26.6]} 16...
h6 {[%clk 0:03:09]} 17. Qb3 {[%clk 0:02:21.3]} 17... Bc8 {[%clk 0:03:08.9]} 18.
Kh1 {[%clk 0:02:14.7]} 18... Nd7 {[%clk 0:03:06.8]} 19. Qe3 {[%clk 0:02:06.6]}
19... Nxe5 {[%clk 0:03:00.1]} 20. fxe5 {[%clk 0:02:06]} 20... Qe7 {[%clk
0:02:59.8]} 21. Rf4 {[%clk 0:01:43.7]} 21... Qg5 {[%clk 0:02:57]} 22. Rdf1
{[%clk 0:01:42.5]} 22... Rf8 {[%clk 0:02:50.1]} 23. h4 {[%clk 0:01:37.5]} 23...
Qe7 {[%clk 0:02:45.2]} 24. Be4 {[%clk 0:01:19]} 24... b5 {[%clk 0:02:33.9]} 25.
Bc2 {[%clk 0:01:02.5]} 25... c5 {[%clk 0:02:31.2]} 26. dxc5 {[%clk 0:00:53]}
26... bxc4 {[%clk 0:02:28.6]} 27. Kh2 {[%clk 0:00:45]} 27... Bb7 {[%clk
0:02:25.9]} 28. R1f2 {[%clk 0:00:36.7]} 28... h5 {[%clk 0:02:22.9]} 29. Qe2
{[%clk 0:00:23.6]} 29... g6 {[%clk 0:02:20]} 30. Qxc4 {[%clk 0:00:20.3]} 30...
Rd5 {[%clk 0:02:14.4]} 31. b4 {[%clk 0:00:18.8]} 31... Rfd8 {[%clk 0:02:10.3]}
32. Qc3 {[%clk 0:00:15.5]} 32... Qd7 {[%clk 0:01:55.1]} 33. Rf6 {[%clk
0:00:10.7]} 33... Rd2 {[%clk 0:01:48.7]} 34. Bb3 {[%clk 0:00:08.1]} 34... Rxf2+
{[%clk 0:01:47]} 35. Rxf2 {[%clk 0:00:09]} 35... Qc6 {[%clk 0:01:47.1]} 0-1

[Event "Late-Titled-Tuesday-Blitz-April-02-2024"]
[Site "Chess.com"]
[Date "2024.04.02"]
[Round "11"]
[White "N_I_Chess"]
[Black "Kostukov_Alex"]
[Result "1-0"]
[WhiteElo "2346"]
[BlackElo "2267"]
[TimeControl "180+1"]
[EndTime "16:02:28 PDT"]
[Termination "N_I_Chess won on time"]

1. d4 {[%clk 0:02:45.8]} 1... g6 {[%clk 0:02:58.5]} 2. c4 {[%clk 0:02:45.5]}
2... Bg7 {[%clk 0:02:57.3]} 3. Nc3 {[%clk 0:02:45.3]} 3... d6 {[%clk 0:02:46.6]}
4. e4 {[%clk 0:02:45.3]} 4... e5 {[%clk 0:02:43.4]} 5. Nf3 {[%clk 0:02:34.1]}
5... exd4 {[%clk 0:02:42.5]} 6. Nxd4 {[%clk 0:02:33.8]} 6... Nc6 {[%clk
0:02:42.7]} 7. Be3 {[%clk 0:02:33.8]} 7... Nge7 {[%clk 0:02:38.7]} 8. Be2 {[%clk
0:02:31.1]} 8... O-O {[%clk 0:02:37.5]} 9. O-O {[%clk 0:02:28]} 9... f5 {[%clk
0:02:36.7]} 10. exf5 {[%clk 0:02:26.7]} 10... Bxd4 {[%clk 0:02:33.8]} 11. Bxd4
{[%clk 0:02:21.5]} 11... Nxf5 {[%clk 0:02:27.6]} 12. Be3 {[%clk 0:02:16.7]}
12... Nxe3 {[%clk 0:02:22.2]} 13. fxe3 {[%clk 0:02:17]} 13... Rxf1+ {[%clk
0:02:23.1]} 14. Qxf1 {[%clk 0:02:04.9]} 14... Be6 {[%clk 0:02:22.3]} 15. Nd5
{[%clk 0:02:02.4]} 15... Kg7 {[%clk 0:02:12.9]} 16. Qe1 {[%clk 0:01:52.8]} 16...
Ne5 {[%clk 0:02:08.8]} 17. Qc3 {[%clk 0:01:51.2]} 17... Qg5 {[%clk 0:01:45.3]}
18. Nf4 {[%clk 0:01:50.8]} 18... Bf7 {[%clk 0:01:38]} 19. c5 {[%clk 0:01:47.9]}
19... Re8 {[%clk 0:01:07.5]} 20. cxd6 {[%clk 0:01:47]} 20... cxd6 {[%clk
0:01:08.4]} 21. Rd1 {[%clk 0:01:44]} 21... Qe7 {[%clk 0:00:40.5]} 22. Qa3 {[%clk
0:01:37.1]} 22... a6 {[%clk 0:00:15.7]} 23. Qxd6 {[%clk 0:01:34.9]} 23... Qxd6
{[%clk 0:00:15.2]} 24. Rxd6 {[%clk 0:01:34.3]} 24... g5 {[%clk 0:00:06.9]} 25.
Nd5 {[%clk 0:01:29.2]} 1-0

[Event "Late-Titled-Tuesday-Blitz-April-02-2024"]
[Site "Chess.com"]
[Date "2024.04.02"]
[Round "11"]
[White "Ar4uha"]
[Black "JoakimVonAnd"]
[Result "1-0"]
[WhiteElo "2601"]
[BlackElo "2700"]
[TimeControl "180+1"]
[EndTime "16:02:29 PDT"]
[Termination "Ar4uha won by checkmate"]

1. e4 {[%clk 0:02:59.6]} 1... c6 {[%clk 0:03:00.5]} 2. d4 {[%clk 0:02:59.3]}
2... d5 {[%clk 0:03:01.4]} 3. exd5 {[%clk 0:03:00]} 3... cxd5 {[%clk 0:03:02]}
4. Bd3 {[%clk 0:03:00.6]} 4... Nc6 {[%clk 0:03:01.6]} 5. c3 {[%clk 0:03:01.2]}
5... Qc7 {[%clk 0:03:02.1]} 6. h3 {[%clk 0:02:59.7]} 6... e6 {[%clk 0:03:00.1]}
7. Nf3 {[%clk 0:02:58.6]} 7... Bd6 {[%clk 0:03:00.5]} 8. O-O {[%clk 0:02:59.2]}
8... Nge7 {[%clk 0:03:00.9]} 9. a4 {[%clk 0:02:59.8]} 9... f6 {[%clk 0:03:00.3]}
10. Na3 {[%clk 0:03:00.1]} 10... a6 {[%clk 0:02:59.6]} 11. Nc2 {[%clk
0:03:00.6]} 11... O-O {[%clk 0:02:59.9]} 12. Ne3 {[%clk 0:03:00.2]} 12... e5
{[%clk 0:02:56.6]} 13. dxe5 {[%clk 0:02:58.2]} 13... fxe5 {[%clk 0:02:57.5]} 14.
Bc2 {[%clk 0:02:58.1]} 14... e4 {[%clk 0:02:48.8]} 15. Nxd5 {[%clk 0:02:58.2]}
15... Nxd5 {[%clk 0:02:32.6]} 16. Qxd5+ {[%clk 0:02:59.1]} 16... Kh8 {[%clk
0:02:32.5]} 17. Bxe4 {[%clk 0:02:52.1]} 17... Ne7 {[%clk 0:02:15]} 18. Qh5
{[%clk 0:02:50.1]} 18... Bf5 {[%clk 0:02:12.5]} 19. Bxf5 {[%clk 0:02:50]} 19...
Nxf5 {[%clk 0:02:13.4]} 20. Ng5 {[%clk 0:02:32.6]} 20... g6 {[%clk 0:02:10.7]}
21. Qg4 {[%clk 0:02:25.8]} 21... Rae8 {[%clk 0:02:08.3]} 22. Bd2 {[%clk
0:02:21.7]} 22... Qb6 {[%clk 0:01:55.8]} 23. Bf4 {[%clk 0:01:56.1]} 23... Nh6
{[%clk 0:01:39.9]} 24. Qd7 {[%clk 0:01:48.8]} 24... Be7 {[%clk 0:01:32.5]} 25.
Be5+ {[%clk 0:01:45.5]} 25... Kg8 {[%clk 0:01:28.2]} 26. Ne6 {[%clk 0:01:41]}
26... Nf7 {[%clk 0:01:20.2]} 27. Nxf8 {[%clk 0:01:37.2]} 27... Kxf8 {[%clk
0:01:20.7]} 28. Bd4 {[%clk 0:01:21.9]} 28... Qxb2 {[%clk 0:01:13.7]} 29. Rab1
{[%clk 0:01:21.8]} 29... Qe2 {[%clk 0:01:13.2]} 30. Rfe1 {[%clk 0:01:14.1]}
30... Qc4 {[%clk 0:01:11.6]} 31. Rxb7 {[%clk 0:01:09.5]} 31... Bd6 {[%clk
0:00:28]} 32. Qxe8# {[%clk 0:01:07.8]} 1-0

[Event "Late-Titled-Tuesday-Blitz-April-02-2024"]
[Site "Chess.com"]
[Date "2024.04.02"]
[Round "11"]
[White "rdarruda"]
[Black "Darkdefense15"]
[Result "1/2-1/2"]
[WhiteElo "2481"]
[BlackElo "2385"]
[TimeControl "180+1"]
[EndTime "16:02:32 PDT"]
[Termination "Game drawn by repetition"]

1. d4 {[%clk 0:02:54.5]} 1... Nf6 {[%clk 0:02:59.6]} 2. Nf3 {[%clk 0:02:53.9]}
2... e6 {[%clk 0:02:56.6]} 3. c4 {[%clk 0:02:54]} 3... d5 {[%clk 0:02:56]} 4. e3
{[%clk 0:02:54.2]} 4... Be7 {[%clk 0:02:55.3]} 5. Nc3 {[%clk 0:02:54.4]} 5...
O-O {[%clk 0:02:55.5]} 6. Bd3 {[%clk 0:02:54.6]} 6... a6 {[%clk 0:02:54.7]} 7.
cxd5 {[%clk 0:02:53.4]} 7... exd5 {[%clk 0:02:55.6]} 8. O-O {[%clk 0:02:53.2]}
8... Re8 {[%clk 0:02:53.1]} 9. Ne5 {[%clk 0:02:52.9]} 9... Nbd7 {[%clk 0:02:48]}
10. f4 {[%clk 0:02:52.7]} 10... Nf8 {[%clk 0:02:43.9]} 11. Qf3 {[%clk 0:02:52]}
11... c6 {[%clk 0:02:43.4]} 12. Bd2 {[%clk 0:02:51.8]} 12... g6 {[%clk
0:02:43.2]} 13. g4 {[%clk 0:02:50.9]} 13... Ne6 {[%clk 0:02:29.8]} 14. f5 {[%clk
0:02:41.5]} 14... Ng5 {[%clk 0:02:15]} 15. Qg2 {[%clk 0:02:41.2]} 15... Bd6
{[%clk 0:02:08.7]} 16. h4 {[%clk 0:02:16.5]} 16... Nge4 {[%clk 0:02:08.8]} 17.
Bxe4 {[%clk 0:02:16.6]} 17... Nxe4 {[%clk 0:02:07]} 18. Nxe4 {[%clk 0:02:15.8]}
18... Bxe5 {[%clk 0:01:56.2]} 19. fxg6 {[%clk 0:01:58.7]} 19... fxg6 {[%clk
0:01:52.3]} 20. dxe5 {[%clk 0:01:49.5]} 20... dxe4 {[%clk 0:01:51.8]} 21. Bc3
{[%clk 0:01:50.1]} 21... Qxh4 {[%clk 0:01:49.9]} 22. Rf4 {[%clk 0:01:49.5]}
22... Be6 {[%clk 0:01:46.9]} 23. g5 {[%clk 0:01:42.7]} 23... Qh5 {[%clk
0:01:35.9]} 24. Qg3 {[%clk 0:01:32]} 24... Rf8 {[%clk 0:01:25.3]} 25. Rf6 {[%clk
0:01:31.4]} 25... Rxf6 {[%clk 0:01:14.7]} 26. exf6 {[%clk 0:01:29.3]} 26... Rd8
{[%clk 0:00:55.7]} 27. f7+ {[%clk 0:01:19.8]} 27... Bxf7 {[%clk 0:00:55.8]} 28.
Rf1 {[%clk 0:01:12.9]} 28... Be6 {[%clk 0:00:41.4]} 29. Qe5 {[%clk 0:00:53]}
29... Qg4+ {[%clk 0:00:40.9]} 30. Kh1 {[%clk 0:00:53]} 30... Qh3+ {[%clk
0:00:39.6]} 31. Kg1 {[%clk 0:00:53]} 31... Qg4+ {[%clk 0:00:39.6]} 32. Kh1
{[%clk 0:00:53]} 32... Qh3+ {[%clk 0:00:39.6]} 33. Kg1 {[%clk 0:00:53.3]} 33...
Qg4+ {[%clk 0:00:39.8]} 1/2-1/2

[Event "Late-Titled-Tuesday-Blitz-April-02-2024"]
[Site "Chess.com"]
[Date "2024.04.02"]
[Round "11"]
[White "Onthequiet"]
[Black "HajiyevKanan"]
[Result "0-1"]
[WhiteElo "2433"]
[BlackElo "2597"]
[TimeControl "180+1"]
[EndTime "16:02:37 PDT"]
[Termination "HajiyevKanan won by resignation"]

1. d4 {[%clk 0:03:00.2]} 1... d5 {[%clk 0:03:00.1]} 2. Nf3 {[%clk 0:02:59.6]}
2... c5 {[%clk 0:03:00.7]} 3. e3 {[%clk 0:02:58.8]} 3... cxd4 {[%clk 0:03:01.6]}
4. exd4 {[%clk 0:02:59]} 4... Nc6 {[%clk 0:03:02.5]} 5. c3 {[%clk 0:02:59.1]}
5... Nf6 {[%clk 0:03:03.4]} 6. h3 {[%clk 0:02:59.4]} 6... Bf5 {[%clk 0:03:03.8]}
7. g4 {[%clk 0:02:59.3]} 7... Be4 {[%clk 0:03:01.2]} 8. Bg2 {[%clk 0:02:58.8]}
8... e6 {[%clk 0:02:55.1]} 9. Nbd2 {[%clk 0:02:58.7]} 9... Bd3 {[%clk 0:02:55]}
10. Nf1 {[%clk 0:02:58]} 10... Ba6 {[%clk 0:02:54.1]} 11. Ne3 {[%clk 0:02:57]}
11... Bd6 {[%clk 0:02:53.1]} 12. Bf1 {[%clk 0:02:54.4]} 12... Bxf1 {[%clk
0:02:44.5]} 13. Kxf1 {[%clk 0:02:55.3]} 13... O-O {[%clk 0:02:44.7]} 14. Kg2
{[%clk 0:02:52.7]} 14... Ne4 {[%clk 0:02:44.2]} 15. Nd2 {[%clk 0:02:21]} 15...
f5 {[%clk 0:02:41.9]} 16. Nxe4 {[%clk 0:02:20.8]} 16... fxe4 {[%clk 0:02:39.8]}
17. Nf1 {[%clk 0:02:17.1]} 17... Qh4 {[%clk 0:02:33.1]} 18. Be3 {[%clk
0:02:16.5]} 18... Rf3 {[%clk 0:02:26.2]} 19. Qe2 {[%clk 0:02:02.8]} 19... Raf8
{[%clk 0:02:25.6]} 20. b4 {[%clk 0:01:34.1]} 20... e5 {[%clk 0:02:03.1]} 21. b5
{[%clk 0:01:27.5]} 21... exd4 {[%clk 0:02:03]} 22. cxd4 {[%clk 0:01:26.5]} 22...
Nb4 {[%clk 0:01:53.1]} 23. a3 {[%clk 0:01:22.2]} 23... Nd3 {[%clk 0:01:52.9]}
24. Ra2 {[%clk 0:01:22.5]} 24... Bf4 {[%clk 0:01:05.1]} 25. Qxd3 {[%clk
0:01:11.2]} 25... exd3 {[%clk 0:00:34]} 26. Kxf3 {[%clk 0:01:11]} 26... Bxe3+
{[%clk 0:00:29.6]} 27. Kxe3 {[%clk 0:01:10.7]} 27... Qe7+ {[%clk 0:00:29]} 28.
Kxd3 {[%clk 0:01:09.2]} 28... Qe4+ {[%clk 0:00:29.1]} 29. Kc3 {[%clk 0:01:09.4]}
29... Qxh1 {[%clk 0:00:28.4]} 30. Ng3 {[%clk 0:01:09.8]} 30... Qxh3 {[%clk
0:00:26.9]} 0-1

[Event "Late-Titled-Tuesday-Blitz-April-02-2024"]
[Site "Chess.com"]
[Date "2024.04.02"]
[Round "11"]
[White "Grischuk"]
[Black "stollenmonster"]
[Result "1-0"]
[WhiteElo "3056"]
[BlackElo "2868"]
[TimeControl "180+1"]
[EndTime "16:02:54 PDT"]
[Termination "Grischuk won by checkmate"]

1. d4 {[%clk 0:03:00.9]} 1... Nf6 {[%clk 0:02:59.8]} 2. c4 {[%clk 0:03:01]} 2...
e6 {[%clk 0:03:00.5]} 3. Bg5 {[%clk 0:03:00.8]} 3... d5 {[%clk 0:03:01.4]} 4. e3
{[%clk 0:03:01]} 4... Be7 {[%clk 0:03:01.3]} 5. Nc3 {[%clk 0:03:01.2]} 5... Ne4
{[%clk 0:03:01.9]} 6. Bxe7 {[%clk 0:02:57.8]} 6... Qxe7 {[%clk 0:03:02.8]} 7.
cxd5 {[%clk 0:02:55]} 7... Nxc3 {[%clk 0:03:02.1]} 8. bxc3 {[%clk 0:02:55.9]}
8... exd5 {[%clk 0:03:02.4]} 9. Qb3 {[%clk 0:02:56.2]} 9... c6 {[%clk
0:03:02.2]} 10. c4 {[%clk 0:02:56.5]} 10... dxc4 {[%clk 0:03:03.1]} 11. Bxc4
{[%clk 0:02:57]} 11... O-O {[%clk 0:03:02]} 12. Ne2 {[%clk 0:02:57.1]} 12... Nd7
{[%clk 0:02:54.8]} 13. O-O {[%clk 0:02:51.5]} 13... Nb6 {[%clk 0:02:55.1]} 14.
Bd3 {[%clk 0:02:51.6]} 14... Be6 {[%clk 0:02:55.5]} 15. Qc2 {[%clk 0:02:51.8]}
15... h6 {[%clk 0:02:55.3]} 16. Nf4 {[%clk 0:02:51.5]} 16... Nd5 {[%clk
0:02:46.4]} 17. Nxe6 {[%clk 0:02:50.9]} 17... Qxe6 {[%clk 0:02:47.3]} 18. Rab1
{[%clk 0:02:49.3]} 18... Rab8 {[%clk 0:02:45.5]} 19. Rfc1 {[%clk 0:02:46.8]}
19... Rfe8 {[%clk 0:02:38.1]} 20. Qb3 {[%clk 0:02:34.4]} 20... Qd6 {[%clk
0:02:21.2]} 21. Bc4 {[%clk 0:02:28]} 21... Re7 {[%clk 0:02:21.1]} 22. Bxd5
{[%clk 0:02:25.7]} 22... cxd5 {[%clk 0:02:22]} 23. Rc5 {[%clk 0:02:25.5]} 23...
Rd7 {[%clk 0:02:21.2]} 24. Rbc1 {[%clk 0:02:23.8]} 24... b6 {[%clk 0:02:15.3]}
25. Rc6 {[%clk 0:02:23.3]} 25... Qe7 {[%clk 0:02:15.4]} 26. a4 {[%clk
0:02:19.2]} 26... Re8 {[%clk 0:02:08.3]} 27. h3 {[%clk 0:02:15.5]} 27... g6
{[%clk 0:02:02.3]} 28. Qb5 {[%clk 0:02:11.1]} 28... Kg7 {[%clk 0:01:57.3]} 29.
a5 {[%clk 0:02:10.3]} 29... bxa5 {[%clk 0:01:56.9]} 30. Qxa5 {[%clk 0:02:11.2]}
30... Rb8 {[%clk 0:01:42.6]} 31. Qc5 {[%clk 0:01:43.5]} 31... Qe4 {[%clk
0:01:32.4]} 32. Rc7 {[%clk 0:01:36.5]} 32... Rb7 {[%clk 0:01:32.7]} 33. Rc8
{[%clk 0:01:35.2]} 33... Re7 {[%clk 0:01:30.9]} 34. Qd6 {[%clk 0:01:28]} 34...
Rbd7 {[%clk 0:00:37.4]} 35. Qb8 {[%clk 0:01:27.6]} 35... h5 {[%clk 0:00:32.5]}
36. Rg8+ {[%clk 0:01:22.8]} 36... Kh6 {[%clk 0:00:32.7]} 37. Rh8+ {[%clk
0:01:20.3]} 37... Kg5 {[%clk 0:00:33.4]} 38. Rc6 {[%clk 0:01:08]} 38... Re6
{[%clk 0:00:29.8]} 39. Rxe6 {[%clk 0:01:06]} 39... Qxe6 {[%clk 0:00:29.5]} 40.
Qf4# {[%clk 0:01:05.3]} 1-0